Workbook

Sheet Hinweise
A1: Hinweise:
A3: - | B3: Positionen mit 0,00€ nicht löschen, sondern bestehen lassen -> es könnte sein das diese Posten in den folgenden Jahren wieder benötigt werden und auch damit nicht in Vergessenheit gerät was es mal gab
A7: - | B7: Die Summe der fortgeschriebenen finanziellen Mittel müssen immer manuell ins Deckblatt des nächsten Haushaltsjahres eingetragen werden.
A8: - | B8: Die Auflistung der fortgeschriebenen finanziellen Mittel im Detailblatt 1 und in den einzelnen Referaten dient als Übersicht, welcher Betrag übernommen werden muss.
A10: - | B10: Somit bildet die Spalte "Übertrag ins nächste HH-Jahr" des jeweiligen Jahres das "Nachrangig verwendbares Vj..-Budget" des nächsten Jahres.
A11: - | B11: Die Spalte "Zurückführung" errechnet sich aus dem nicht verwendeten "Nachrangigen Vj..-Budget" und gilt immer für das nächste Jahr.
A14: - | B14: Bezüglich der Fachschaftsräte:
A15: - | B15: Die Zuführung der Gelder der FSR in "Fortgeschriebene finanzielle Mittel" erfolgt aufgrund deren Haushaltsplänen, ebenso wie die der "angeordneten Vermögensänderung".
A16: - | B16: Die Beträge werden in Summe im Detailblatt 1 bei den jeweiligen FSR eingetragen und automatisch auf das Deckblatt übernommen.
A18: - | B18: ACHTUNG:
B19: Der Betrag aus der Zeile R52 vom Detailblatt 1 wird in der Summe R60 berücksichtigt.
A21: - | B21: WICHTIG:
B22: Der Haushaltsplan des Vorjahres, welcher maßgeblich für die Zahlen des neu geplanten Haushaltsplans ist, muss nach Abschluss des ersten Quartals endgültig auf die IST-Werte angepasst werden.
B23: Daraus sollte sich der erste Nachtragshaushalt ergeben, woraus sich wiederum eine Anpassung des Semesterbeitrags für das WS ergeben könnte.
B25: Für die Ermittlung der angeordneten Vermögensänderung des StuRa werden die geplanten Einnahmen als Obergrenze zu Grunde gelegt. Als Einnahmen werden dabei vom Deckblatt berücksichtigt.
B26: Die Einnahmen aus der Selbstverwaltung, die Zinsen und die Beitragseinnahmen der Studierenden abzüglich der Zurückführung an Studierende.
B27: Den daraus ermittelten Einnahmen werden die noch verfügbaren finanziellen Mittel entgegengestellt, sind diese größer als die geplanten Einnahmen, so ergibt sich die Vermögensänderung auf der Einnahmenseite.
B28: Für die Ermittlung der angeordneten Vermögensänderung des StuRa auf der Ausgabenseite, werden die verfügbaren finanziellen Mittel mit der Mindestreserve verglichen.
B29: Sind diese kleiner als die Mindestreserve, so bildet die Differenz den Betrag der Vermögensänderung.

Sheet Deckblatt
A1: Haushaltsplan 2019 Studierendenschaft HTW Dresden | C1: Einnahmen | F1: Ausgaben
C2: PLAN | D2: IST | E2: SALDO | F2: PLAN | G2: IST | H2: SALDO
A3: Selbstverwaltung | C3: ='Detailblatt I'!J61 -> 8300 | D3: ='Detailblatt I'!K61 -> 2556.5 | E3: =D3-C3 -> -5743.5 | F3: ='Detailblatt I'!M61 -> 177235 | G3: ='Detailblatt I'!N61 -> 31974.46 | H3: =(F3-G3) -> 145260.54
A4: Beitragseinnahmen der Studierenden | C4: ='Detailblatt II'!F16 -> 159800 | D4: ='Detailblatt II'!G16 -> 105277.33 | E4: =D4-C4 -> -54522.67 | F4: ='Detailblatt II'!I16 -> 0 | G4: ='Detailblatt II'!J16 -> 0 | H4: =(F4-G4) -> 0
A5: Zinsen | C5: ='Detailblatt II'!F20 -> 0 | D5: ='Detailblatt II'!G20 -> 0 | E5: 0 | F5: ='Detailblatt II'!I20 -> 0 | G5: ='Detailblatt II'!J20 -> 0 | H5: =(F5-G5) -> 0
A6: Entnahme (=Einnahme) Ansparen (=Ausgabe) | B6: von Vermögen | C6: =IF((Beitragsermittlung!B16)-('Detailblatt II'!F14+'Detailblatt II'!F15)>0,(Beitragsermittlung!B16)-('Detailblatt II'!F14+'Detailblatt II'!F15),0) -> 720.1 | D6: ='Detailblatt II'!J21 -> 0 | E6: -720.1 | F6: 0 | G6: ='Detailblatt II'!G21 -> 0 | H6: =(F6-G6) -> 0
A7: angeordnete Vermögensänderung lt. FO | C7: =Beitragsermittlung!B14 -> 0 | E7: 0 | F7: ='Detailblatt II'!I19 -> 0 | H7: =(F7-G7) -> 0
A8: Zurückführung an Studierende (StuRa) | C8: 2524.9 | D8: =C8 -> 2524.9 | E8: =D8-C8 -> 0
A9: Zurückführung an Studierende (FSR) | C9: =SUM('Detailblatt I'!R45:R52) -> 5890 | D9: =C9 -> 5890 | E9: =D9-C9 -> 0
A10: Gesamt: | C10: =SUM(C3:C9) -> 177235 | D10: 116248.73 | E10: -60986.27 | F10: 177235 | G10: 31974.46 | H10: 145260.54
A11: Berechnung des Semesterbeitrag:
B12: Planausgaben: | C12: =F10 -> 177235 | E12: In Zeile F6 (Ansparung) manuell einzutragen: | H12: =IF(Deckblatt!C10-Deckblatt!F10>0,Deckblatt!C10-Deckblatt!F10+F6,IF(C10=F10,"Haushaltsplan ist ausgeglichen!","Haushaltsplan ist nicht ausgeglichen!")) -> Haushaltsplan ist ausgeglichen!
A13: - | B13: Planeinnahmen: | C13: =C3+C5 -> 8300
A14: - | B14: Zurückführung: | C14: =C8+C9 -> 8414.9
A15: - | B15: Vermögensänderung | C15: =C7 -> 0
A16: = | B16: Gesamt: | C16: =C12-C13-C14-C15-F6 -> 160520.1
A17: / | B17: Studenten/Jahr: | C17: ='Detailblatt II'!D14+('Detailblatt II'!D15/6*4) -> 7188.666667
A18: = | B18: Stud./Semester: | C18: =IF((C16-'Detailblatt II'!F13)/Deckblatt!C17<0,0,(C16-'Detailblatt II'!F13)/Deckblatt!C17) -> 18.39285449 | D18: Anzusetzender Semesterbeitrag: | F18: =ROUND((C18*2),0)/2 -> 18.5

Sheet Beitragsermittlung
A1: Ermittlung des Beitrages in Bezug auf die angeordnete Vermögensänderung
A3: Geplante Einnahmen | B3: =Deckblatt!F10-Deckblatt!C8-Deckblatt!C9-Deckblatt!F6 -> 168820.1
A4: verfügbare finanzielle Mittel | B4: ='fortgeschr. Mittel+Konto'!D9 -> 64604.17
A5: Obergrenze finanzielle Mittel | B5: =IF(B3<B4,B3,B4) -> 64604.17
A7: Vorgesehene Vermögenssenkung wegen zu hoher verfügbarer finanzieller Mittel | B7: =IF(Beitragsermittlung!B4>Deckblatt!F10-Deckblatt!F6,Beitragsermittlung!B4-Beitragsermittlung!B5,0) -> 0
A8: Mindestreserve | B8: =Mindestreserve!D17 -> 45150
A9: (Verfügbare finanzielle Mittel nach Vermögensenkung) | B9: =B4-B7 -> 64604.17
A10: Untergrenze für verfügbare finanzielle Mittel durch Bemessung an der Mindestreserve wird erreicht | B10: =IF(B5<B8,B8,B5) -> 64604.17
A11: beabsichtigte Senkung der verfügbaren finanziellen Mittel | B11: =B4-B10 -> 0
A13: Obergrenze für verpflichtende Vermögenssenkung entgegen der (negativen) Erhebung von Beiträgen | B13: =IF(Beitragsermittlung!B11>(Deckblatt!F10-Deckblatt!F6-(Deckblatt!C3+Deckblatt!C5+Deckblatt!C8+Deckblatt!C9+'Detailblatt II'!F13)),Deckblatt!F10-Deckblatt!F6-(Deckblatt!C3+Deckblatt!C5+Deckblatt!C8+Deckblatt!C9+'Detailblatt II'!F13),Beitragsermittlung!B11) -> 0
A14: Vermögenssenkung wegen übermäßig verfügbarer finanzieller Mittel ohne negativem Semesterbeitrag | B14: =IF(B13<0,0,B13) -> 0
A16: restlich zu vereinnahmender Semesterbeitrag ab dem nächsten Sommersemester | B16: =(Deckblatt!F3+Deckblatt!F5+Deckblatt!F7+Deckblatt!F4)-(Deckblatt!C13+Deckblatt!C14+Deckblatt!C15+'Detailblatt II'!F13) -> 132220.1

Sheet fortgeschr. Mittel+Konto
A1: Fortgeschriebene finanzielle Mittel + Bankkontostand | C1: Jahr - | D1: ='Detailblatt I'!F1 -> 2019
F2: Nr. | G2: voraussichtliche Ausgaben | I2: Saldo
B3: Position | C3: erstellt am: | D3: Saldo | F3: 1. | G3: Personal (Nov.+Dez. inkl. 13.Gehalt, ACON, Finanzamt) | I3: 0
B4: Bank-/Kassenbestand bei Haushaltsplanerstellung | D4: 172698.01
A5: - | B5: abzgl. voraussichtliche Ausgaben | D5: =I24*(-1) -> -43298.94 | F5: 2. | G5: Finanzbeschlüsse aktuell noch nicht bezahlt in Summe | I5: 0
A6: - | B6: nachrangig verwendbares Vorjahresbudget | D6: ='Detailblatt I'!P61*(-1) -> -28080
A7: - | B7: Zurückführung an Studierende gesamt | D7: =SUM(Deckblatt!C8:C9)*-1 -> -8414.9 | F7: 3. | G7: Schulungen/Konferenzen (KoSe) | I7: 0
A8: - | B8: Beitragseinnahmen anteilig WS 18/19 | D8: ='Detailblatt II'!F13*-1 -> -28300 | F8: 4. | G8: voraussichtliche AE | I8: 2750
A9: = | B9: verfügbare finanzielle Mittel | D9: =D4+D5+D6+D7+D8 -> 64604.17 | F9: 5. | G9: offene Härtefallanträge | I9: 0
F10: 6. | G10: Software-Abos (AGENDA etc.) | I10: 0
F11: 7. | G11: Kosten für Wartung (Drucker etc.) | I11: 0
F12: 8. | G12: Kontoführung | I12: 0
F13: 9. | G13: Kino in der HTW & Co. | I13: 0
F14: 10. | G14: Kosten für Wahlen | I14: 0
F15: 11. | G15: Kaffeebestellung(en) | I15: 0
F16: 12. | G16: Ersatz- & Neuanschaffung | I16: 0
F17: 13. | G17: wahrscheinlich noch zu beschließende Finanzanträge | I17: 0
F19: 14. | G19: Mittel aller FSR in Summe lt. Kontenblatt | I19: =41507.47-1393.12-2096.09-1000 -> 37018.26
F21: 15. | G21: Konto 1704 | I21: 5606.64
F22: 16. | G22: Konto 1450 | I22: -2075.96
F23: 17. | I23: 0
F24: = | G24: Gesamtsumme: | I24: =SUM(I3:I23) -> 43298.94

Sheet Detailblatt I
A1: Detailblatt I | E1: Jahr - | F1: 2019 | J1: Einnahmen | M1: Ausgaben | P1: nachrangig verwendbares Vj. Budget | Q1: davon verwendet | R1: Zuführung "Fortgeschr. finanz. Mittel" | S1: Übertrag ins nächste HH-Jahr
J2: PLAN | K2: IST | L2: SALDO | M2: PLAN | N2: IST | O2: SALDO
A3: Selbstverwaltung der Studentinnen- und Studentenschaft HTW Dresden
A4: Studentinnen- und Studentenrat
A5: Sachkontonr.
A6: 2749 | B6: Angestellte | C6: AAG | K6: 0 | L6: =K6 -> 0
A7: 4120 | C7: Gehälter | M7: 86000 | N7: 19097.65 | O7: =M7-SUM(N7:N10)+L6 -> 63079.2
A8: 4130 | C8: gesetzl. sozial. Aufw. | N8: 3737.47
A9: 4138 | C9: Beitrag BG | N9: 0
A10: 4956 | C10: Acon GmbH (Lohnabr.) | N10: 85.68
A11: 4110 | B11: (AE) Aufwandsentschädigungen | M11: 9250 | N11: 0 | O11: =M11-N11 -> 9250
A12: 4640 | B12: Kaffee & Verpflegung | M12: 1000 | N12: 430.3 | O12: 569.7
A13: 4670 | B13: Allgemine Reisekosten (die keiner Veranstaltung zugeordnet sind) | M13: 750 | N13: 0 | O13: =M13-N13 -> 750
A14: 4909 | B14: Sprecherinnen und Sprecher | M14: 0 | N14: 0 | O14: 0
A15: 4930 | B15: Büro- und Verbrauchsmaterialien | M15: 300 | N15: 0 | O15: 300 | P15: 300 | Q15: =IF(O15<0,IF(P15>0,IF((O15*(-1))>P15,P15,O15*(-1)),0),0) -> 0 | R15: =IF(OR(Q15>P15,O15+P15<0),makro1(),ROUNDDOWN(P15-Q15,-1)) -> 300 | S15: =IF(O15>0,ROUNDDOWN(O15,-1),0) -> 300
A16: 4943 | B16: Teilnahme Konferenzen | M16: 1500 | N16: 765.3 | O16: 734.7 | P16: 740 | Q16: =IF(O16<0,IF(P16>0,IF((O16*(-1))>P16,P16,O16*(-1)),0),0) -> 0 | R16: =IF(OR(Q16>P16,O16+P16<0),makro1(),ROUNDDOWN(P16-Q16,-1)) -> 740 | S16: =IF(O16>0,ROUNDDOWN(O16,-1),0) -> 730
A17: 4944 | B17: Teilnahme Schulungen | M17: 700 | N17: 0 | O17: 700 | P17: 360 | Q17: 0 | R17: =IF(OR(Q17>P17,O17+P17<0),makro1(),ROUNDDOWN(P17-Q17,-1)) -> 360 | S17: =IF(O17>0,ROUNDDOWN(O17,-1),0) -> 700
A18: 4945 | B18: Durchführung Konferenzen | M18: ='Schulungen & Konferenzen'!F20 -> 2500 | N18: ='Schulungen & Konferenzen'!G20 -> 0 | O18: 2500 | P18: ='Schulungen & Konferenzen'!I20 -> 1500 | Q18: ='Schulungen & Konferenzen'!J20 -> 0 | R18: ='Schulungen & Konferenzen'!K20 -> 1500 | S18: ='Schulungen & Konferenzen'!L20 -> 2000
A19: 4946 | B19: Durchführung Schulungen | M19: ='Schulungen & Konferenzen'!F13 -> 5500 | N19: ='Schulungen & Konferenzen'!G13 -> 2977.84 | O19: 2522.16 | P19: ='Schulungen & Konferenzen'!I13 -> 3700 | Q19: ='Schulungen & Konferenzen'!J13 -> 900 | R19: ='Schulungen & Konferenzen'!K13 -> 2800 | S19: ='Schulungen & Konferenzen'!L13 -> 4750
A20: 4950 | B20: Rechts- und Beratungskosten | M20: 500 | N20: 0 | O20: 500 | P20: 500 | Q20: =IF(O20<0,IF(P20>0,IF((O20*(-1))>P20,P20,O20*(-1)),0),0) -> 0 | R20: =IF(OR(Q20>P20,O20+P20<0),makro1(),ROUNDDOWN(P20-Q20,-1)) -> 500 | S20: =IF(O20>0,ROUNDDOWN(O20,-1),0) -> 500
A21: 4989 | B21: Ersatz- und Neuanschaffung | M21: 4000 | N21: 912.47 | O21: 3087.53 | P21: 980 | Q21: 0 | R21: =IF(OR(Q21>P21,O21+P21<0),makro1(),ROUNDDOWN(P21-Q21,-1)) -> 980 | S21: =IF(O21>0,ROUNDDOWN(O21,-1),0) -> 3080
A22: Zwischensumme: | K22: =SUM(K6) -> 0 | L22: =SUM(L6) -> 0 | M22: =SUM(M6:M21) -> 112000 | N22: =SUM(N6:N21) -> 28006.71 | O22: =SUM(O6:O21) -> 83993.29 | P22: =SUM(P15:P21) -> 8080 | Q22: =SUM(Q15:Q21) -> 900 | R22: =SUM(R15:R21) -> 7180 | S22: =SUM(S15:S21) -> 12060
A23: Referate
A24: 4955/4970 | B24: Finanzen | J24: =Finanzen!D5 -> 0 | K24: =Finanzen!E5 -> 0 | L24: =K24-J24 -> 0 | M24: =Finanzen!G5 -> 1400 | N24: =Finanzen!H5 -> 629.05 | O24: =M24-N24 -> 770.95
A25: 4961 | B25: Hochschulpolitik | J25: =Hochschulpolitik!C8 -> 0 | K25: =Hochschulpolitik!D8 -> 0 | L25: =K25-J25 -> 0 | M25: =Hochschulpolitik!F8 -> 1750 | N25: =Hochschulpolitik!G8 -> 150 | O25: 1600 | P25: =Hochschulpolitik!I8 -> 3000 | Q25: =Hochschulpolitik!J8 -> 0 | R25: =Hochschulpolitik!K8 -> 3000 | S25: =Hochschulpolitik!L8 -> 1600
A26: 4962 | B26: Internationales | J26: =Internationales!C7 -> 0 | K26: =Internationales!D7 -> 0 | L26: 0 | M26: =Internationales!F7 -> 850 | N26: =Internationales!G7 -> 115.4 | O26: 734.6 | P26: =Internationales!I7 -> 960 | Q26: =Internationales!J7 -> 0 | R26: =Internationales!K7 -> 960 | S26: =Internationales!L7 -> 280
A27: 4963 | B27: Kultur | J27: =Kultur!C10 -> 7500 | K27: =Kultur!D10 -> 2396.5 | L27: -5103.5 | M27: =Kultur!F10 -> 11700 | N27: =Kultur!G10 -> 1312.79 | O27: 10387.21 | P27: =Kultur!I10 -> 5440 | Q27: =Kultur!J10 -> 0 | R27: =Kultur!K10 -> 5440 | S27: =Kultur!L10 -> 10380
A28: 4964 | B28: Öffentlichkeitsarbeit | J28: =Öffentlichkeitsarbeit!C8 -> 500 | K28: =Öffentlichkeitsarbeit!D8 -> 40 | L28: -460 | M28: =Öffentlichkeitsarbeit!F8 -> 3600 | N28: =Öffentlichkeitsarbeit!G8 -> 0 | O28: 3600 | P28: =Öffentlichkeitsarbeit!I8 -> 1660 | Q28: =Öffentlichkeitsarbeit!J8 -> 0 | R28: =Öffentlichkeitsarbeit!K8 -> 1660 | S28: =Öffentlichkeitsarbeit!L8 -> 3600
A29: 4965 | B29: Qualitätsmanagement | J29: =Qualitätsmanagement!C4 -> 0 | K29: =Qualitätsmanagement!D4 -> 0 | L29: 0 | M29: =Qualitätsmanagement!F4 -> 500 | N29: =Qualitätsmanagement!G4 -> 0 | O29: 500 | P29: =Qualitätsmanagement!I4 -> 0 | Q29: =Qualitätsmanagement!J4 -> 0 | R29: =Qualitätsmanagement!K4 -> 0 | S29: =Qualitätsmanagement!L4 -> 0
A30: 4966 | B30: Soziales | J30: =Soziales!C7 -> 0 | K30: =Soziales!D7 -> 0 | L30: 0 | M30: =Soziales!F7 -> 1500 | N30: =Soziales!G7 -> 0 | O30: 1500 | P30: =Soziales!I7 -> 200 | Q30: =Soziales!J7 -> 0 | R30: =Soziales!K7 -> 200 | S30: =Soziales!L7 -> 1200
A31: 4967 | B31: Sport | J31: =Sport!C9 -> 0 | K31: =Sport!D9 -> 0 | L31: 0 | M31: =Sport!F9 -> 1250 | N31: =Sport!G9 -> 0 | O31: 1250 | P31: =Sport!I9 -> 2150 | Q31: =Sport!J9 -> 0 | R31: =Sport!K9 -> 2150 | S31: =Sport!L9 -> 1250
A32: 4968 | B32: Studium | J32: =Studium!C6 -> 0 | K32: =Studium!D6 -> 0 | L32: 0 | M32: =Studium!F6 -> 500 | N32: =Studium!G6 -> 0 | O32: 500 | P32: =Studium!I6 -> 0 | Q32: =Studium!J6 -> 0 | R32: =Studium!K6 -> 0 | S32: =Studium!L6 -> 0
A33: 4969 | B33: Studentische Selbstverwaltung & Organisation | J33: ='Studentische Verwaltung'!C14 -> 300 | K33: ='Studentische Verwaltung'!D14 -> 120 | L33: -180 | M33: ='Studentische Verwaltung'!F14 -> 18935 | N33: ='Studentische Verwaltung'!G14 -> 260.31 | O33: 18674.69 | P33: ='Studentische Verwaltung'!I14 -> 1990 | Q33: ='Studentische Verwaltung'!J14 -> 0 | R33: ='Studentische Verwaltung'!K14 -> 1990 | S33: ='Studentische Verwaltung'!L14 -> 18660
A34: ---- | B34: Ausschüsse des Studentinnen- und Studentenrates | J34: 0 | K34: 0 | L34: 0 | M34: 0 | N34: 0 | O34: 0
A35: ---- | B35: weitere Vertretungen | J35: 0 | K35: 0 | L35: 0 | M35: 0 | N35: 0 | O35: 0
A36: Zwischensumme: | J36: =SUM(J24:J35) -> 8300 | K36: 2556.5 | L36: -5743.5 | M36: 41985 | N36: 2467.55 | O36: 39517.45 | P36: =SUM(P25:P33) -> 15400 | Q36: =SUM(Q25:Q33) -> 0 | R36: =SUM(R25:R33) -> 15400 | S36: =SUM(S25:S33) -> 36970
A37: Ausschüsse der Studentinnen- und Studentenschaft
A38: ---- | B38: weitere Ausschüsse der Studentinnen- und Studentenschaft | M38: 0 | N38: 0 | O38: =M38-N38 -> 0
A39: ---- | B39: Wahlausschuss der Studentinnen- und Studentenschaft | M39: 0 | N39: 0 | O39: =M39-N39 -> 0
A40: 4959 | B40: (HFA) Härtefallausschuss der Studentinnen- & Studentenschaft | M40: 2000 | N40: 202.7 | O40: =M40-N40 -> 1797.3
A41: Zwischensumme: | M41: =SUM(M38:M40) -> 2000 | N41: =SUM(N38:N40) -> 202.7 | O41: =SUM(O38:O40) -> 1797.3
A42: Fachschaftsräte
A43: Anzahl der Studierenden im: | F43: WiSe | G43: 19/20 | H43: SoSe | I43: 2019 | M43: Sockelbetrag p./Semester für FSR: | O43: 250 | P43: Zuführung aus den Haushaltsplänen der FSR übernehmen. (inkl. Angeordnete Vermögensänderung)
A44: gesamt: | F44: =SUM(F45:G52) -> 4588 | H44: =SUM(H45:I52) -> 4000 | M44: Geld was den FSR "zugeschrieben" wird.
A45: 4901 | B45: Bauingenieurwesen/Architektur | F45: 494 | H45: 413 | L45: =K45-J45 -> 0 | M45: =ROUND(($O$43*2)+((F45+H45)*$D$53),-2) -> 1200 | N45: 0 | O45: =M45-N45 -> 1200 | R45: 0
A46: 4902 | B46: Elektrotechnik | F46: 504 | H46: 442 | L46: =K46-J46 -> 0 | M46: =ROUND(($O$43*2)+((F46+H46)*$D$53),-2) -> 1200 | N46: 0 | O46: =M46-N46 -> 1200 | R46: 0
A47: 4903 | B47: Landbau/Umwelt/Chemie | F47: 703 | H47: 609 | L47: 0 | M47: 1500 | N47: 0 | O47: 1500 | R47: 0
A48: 4904 | B48: Informatik/Mathematik | F48: 659 | H48: 572 | L48: 0 | M48: 1400 | N48: 0 | O48: 1400 | R48: 5090
A49: 4905 | B49: Maschinenbau | F49: 703 | H49: 603 | L49: 0 | M49: 1500 | N49: 0 | O49: 1500 | R49: 800
A50: 4906 | B50: Geoinformation | F50: 330 | H50: 293 | L50: 0 | M50: 1000 | N50: 0 | O50: 1000 | R50: 0
A51: 4907 | B51: Wirtschaftswissenschaften | F51: 1097 | H51: 994 | L51: 0 | M51: 2100 | N51: 0 | O51: 2100 | R51: 0
A52: 4908 | B52: Design | F52: 98 | H52: 74 | L52: 0 | M52: 600 | N52: 0 | O52: 600 | R52: 0
A53: Betrag für FSR: | D53: 0.75 | E53: Absicherung Teilnahme BuFaTas: | I53: 0.5 | M53: =ROUND(($F$44+$H$44)*$I$53,-2) -> 4300 | N53: 0 | O53: 4300 | P53: 4600 | Q53: =IF(O53<0,IF(P53>0,IF((O53*(-1))>P53,P53,O53*(-1)),0),0) -> 0 | R53: =IF(OR(Q53>P53,O53+P53<0),makro1(),ROUNDDOWN(P53-Q53,-1)) -> 4600 | S53: =IF(O53>0,ROUNDDOWN(O53,-1),0) -> 4300
A54: Zwischensumme: | J54: =SUM(J45:J52) -> 0 | K54: =SUM(K45:K52) -> 0 | L54: =SUM(L45:L52) -> 0 | M54: =SUM(M45:M53) -> 14800 | N54: =SUM(N45:N53) -> 0 | O54: =SUM(O45:O53) -> 14800 | P54: =SUM(P53) -> 4600 | Q54: =SUM(Q53) -> 0 | R54: =SUM(R45:R53) -> 10490 | S54: =SUM(S53) -> 4300
A55: Vertretungen der Studentinnen und Studenten
A56: ---- | B56: Vertretungen der Studentinnen und Studenten in der Hochschule | M56: 0 | N56: 0 | O56: =M56-N56 -> 0
A57: ---- | B57: Konferenz Sächsischer Studierendenschaft | M57: ='Detailblatt II'!I6 -> 2000 | N57: ='Detailblatt II'!J6 -> 0 | O57: =M57-N57 -> 2000
A58: ---- | B58: Interessenvertretungen der Studentinnen- und Studentenschaft | M58: ='Detailblatt II'!I11 -> 4100 | N58: ='Detailblatt II'!J11 -> 1297.5 | O58: =M58-N58 -> 2802.5
A59: ---- | B59: weitere Interessenvertetungen | M59: 350 | N59: 0 | O59: =M59-N59 -> 350
A60: Zwischensumme: | M60: =SUM(M56:M59) -> 6450 | N60: =SUM(N56:N59) -> 1297.5 | O60: =SUM(O56:O59) -> 5152.5
A61: Gesamtsumme: | J61: =SUM(J54,J41,J36,J22) -> 8300 | K61: =SUM(K54,K41,K36,K22) -> 2556.5 | L61: =SUM(L54,L41,L36,L22) -> -5743.5 | M61: =SUM(M60,M54,M41,M36,M22) -> 177235 | N61: =SUM(N60,N54,N41,N36,N22) -> 31974.46 | O61: =SUM(O60,O54,O41,O36,O22) -> 145260.54 | P61: =SUM(P22,P36,P54) -> 28080 | Q61: =SUM(Q54,Q36,Q22) -> 900 | R61: =R22+R36+R53 -> 27180 | S61: =SUM(S53,S36,S22) -> 53330

Sheet Detailblatt II
A1: Detailblatt II | B1: Jahr - | C1: ='Detailblatt I'!F1 -> 2019 | E1: Häufigkeit | F1: Einnahmen | I1: Ausgaben
F2: PLAN | G2: IST | H2: SALDO | I2: PLAN | J2: IST | K2: SALDO
A3: Konferenz Sächsischer Studierendenschaften
A4: Finanzvereinbarung | E4: 1 | F4: 0 | G4: 0 | H4: =G4-F4 -> 0 | I4: 1350 | J4: 0 | K4: =I4-J4 -> 1350
A5: Förderung der KSS (so auch Domain kss-sachsen.de) | E5: 1 | F5: 0 | G5: 49.84 | H5: =G5-F5 -> 49.84 | I5: 650 | J5: 0 | K5: =I5-J5 -> 650
D6: Zwischensumme: | F6: =SUM(F4:F5) -> 0 | G6: =SUM(G4:G5) -> 49.84 | H6: =SUM(H4:H5) -> 49.84 | I6: 2000 | J6: 0 | K6: 2000
A7: Interessenvertretungen der Studentinnen- und Studentenschaften
A8: faranto e.V. | F8: 0 | G8: 0 | H8: =G8-F8 -> 0 | I8: 600 | J8: 0 | K8: =I8-J8 -> 600
A9: freier zusammenschluss von studentInnenschaften (fzs) e.V. | E9: 1 | F9: 0 | G9: 0 | H9: =G9-F9 -> 0 | I9: 3500 | J9: 1297.5 | K9: =I9-J9 -> 2202.5
A10: weitere | F10: 0 | G10: 0 | H10: =G10-F10 -> 0 | I10: 0 | J10: 0 | K10: =I10-J10 -> 0
D11: Zwischensumme: | F11: =SUM(F8:F10) -> 0 | G11: =SUM(G8:G10) -> 0 | H11: 0 | I11: 4100 | J11: 1297.5 | K11: 2802.5
A12: Beitragseinnahmen
A13: Anteilig WS 18/19 | B13: 18.5 | C13: x Studierende | D13: 4588 | E13: 1 | F13: =ROUND((($B$13*$D$13)/6)*2,-2) -> 28300 | G13: 28872.33 | H13: =G13-F13 -> 572.33 | I13: 0 | J13: 0 | K13: =I13-J13 -> 0
A14: SoSe 19 | B14: 18.5 | D14: 4130 | E14: 1 | F14: =ROUND($B$14*$D$14,-2) -> 76400 | G14: 76405 | H14: =G14-F14 -> 5 | I14: 0 | J14: 0 | K14: =I14-J14 -> 0
A15: Anteilig WS 19/20 | B15: 18 | D15: 4588 | E15: 1 | F15: =ROUND((($B$15*$D$15)/6)*4,-2) -> 55100 | G15: 0 | H15: =G15-F15 -> -55100 | I15: 0 | J15: 0 | K15: =I15-J15 -> 0
D16: Zwischensumme: | F16: =SUM(F13:F15) -> 159800 | G16: =SUM(G13:G15) -> 105277.33 | H16: =SUM(H13:H15) -> -54522.67 | I16: 0 | J16: 0 | K16: 0
A17: Vermögen
A18: Verfügbare finanzielle Mittel | F18: ='fortgeschr. Mittel+Konto'!D9 -> 64604.17 | H18: =G18-F18 -> -64604.17 | I18: 0 | J18: 0 | K18: =I18-J18 -> 0
A19: angeordnete Vermögensänderung lt. FO | F19: =Deckblatt!C7 -> 0 | H19: 0 | I19: =IF(F18<Mindestreserve!D17,Mindestreserve!D17-F18,0) -> 0 | K19: =I19-J19 -> 0
A20: Zinsen auf Vermögen | F20: 0 | G20: 0 | H20: 0 | I20: 0 | J20: 0 | K20: =I20-J20 -> 0
A21: geplante Veränderung des Vermögens Ansparen/Entnahme | F21: =Deckblatt!C6 -> 720.1 | G21: 0 | H21: -720.1 | I21: =Deckblatt!F6 -> 0 | J21: 0 | K21: =I21-J21 -> 0
D22: Zwischensumme: | F22: =SUM(F18:F21) -> 65324.27 | G22: 0 | H22: -65324.27 | I22: 0 | J22: 0 | K22: 0
A23: Gesamtsumme: | F23: =SUM(F16,F11,F6) -> 159800 | G23: =SUM(G16,G11,G6) -> 105327.17 | H23: =SUM(H16,H11,H6) -> -54472.83 | I23: =SUM(I16,I11,I6) -> 6100 | J23: =SUM(J16,J11,J6) -> 1297.5 | K23: 4802.5

Sheet Mindestreserve
A1: Mindestreserve | D1: Jahr - | E1: ='Detailblatt I'!F1 -> 2019 | F1: Berechnungsgrundlage ist die aktuelle Finanzordnung (FO)
G2: - alle vertraglich festgeschriebenen Vereinbarungen müssen durch die Kapitalreserve abgedeckt sein
A3: vertragliche Vereinbarungen | D3: Planausgaben
A4: Studentinnen- und Studentenrat
A5: Lohnkosten (Detailblatt I - Zelle M7) | D5: 43000
A6: …aktuell ohne Belegung…
A7: …aktuell ohne Belegung… | D7: ------
A8: Referat Finanzen
A9: Kontoführungsgebühren | D9: =Finanzen!G3 -> 400
A10: Buchhaltungssoftware AGENDA | D10: =Finanzen!G4 -> 1000
A11: …aktuell ohne Belegung… | D11: ------
A12: Referat Selbstverwaltung & Organisation
A13: Domains | D13: ='Studentische Verwaltung'!F4 -> 50
A14: laufende Kosten (Druck, Wartung) | D14: ='Studentische Verwaltung'!F13 -> 700
A15: …aktuell ohne Belegung… | D15: ------
A16: …aktuell ohne Belegung… | D16: ------
A17: Gesamt: | D17: =SUM(D5:E16) -> 45150

Sheet Schulungen & Konferenzen
A1: Schulungen | B1: Häufigkeit | C1: Einnahmen | F1: Ausgaben | I1: nachrangig verwendbares Vj. Budget | J1: davon verwendet | K1: Zuführung "Fortgeschr. finanz. Mittel" | L1: Übertrag ins nächste HH-Jahr | M1: §5 Abs.4 S.2 FO
C2: PLAN | D2: IST | E2: SALDO | F2: PLAN | G2: IST | H2: SALDO
A3: Akkreditierung / Qualitätsmanagement | B3: 2 | C3: 0 | D3: 0 | E3: =D3-C3 -> 0 | F3: 500 | G3: 2977.84 | H3: =F3-G3 -> -2477.84 | I3: 900 | J3: =IF(H3<0,IF(I3>0,IF((H3*(-1))>I3,I3,H3*(-1)),0),0) -> 900 | K3: =IF(OR(J3>I3,H3+I3<0),makro1(),ROUNDDOWN(I3-J3,-1)) -> 0 | L3: =IF(H3>0,ROUNDDOWN(H3,-1),0) -> 0 | M3: =(D3-G3+J3)-(C3-F3) -> -1577.84
A4: Sozialberatung (BaföG, Jobberatung) / Soziales | B4: 1 | C4: 0 | D4: 0 | E4: =D4-C4 -> 0 | F4: 150 | G4: 0 | H4: =F4-G4 -> 150 | I4: 300 | J4: =IF(H4<0,IF(I4>0,IF((H4*(-1))>I4,I4,H4*(-1)),0),0) -> 0 | K4: =IF(OR(J4>I4,H4+I4<0),makro1(),ROUNDDOWN(I4-J4,-1)) -> 300 | L4: =IF(H4>0,ROUNDDOWN(H4,-1),0) -> 150 | M4: =(D4-G4+J4)-(C4-F4) -> 150
A5: Schulungen studentische und akademische Selbstverwaltung (Studienprüfungsordnung) / Studium | B5: 1 | C5: 0 | D5: 0 | E5: 0 | F5: 200 | G5: 0 | H5: 200 | I5: 400 | J5: 0 | K5: =IF(OR(J5>I5,H5+I5<0),makro1(),ROUNDDOWN(I5-J5,-1)) -> 400 | L5: 200 | M5: 200
A6: Prüfungsangelegenheiten / Studium | B6: 1 | C6: 0 | D6: 0 | E6: 0 | F6: 150 | G6: 0 | H6: 150 | I6: 300 | J6: 0 | K6: =IF(OR(J6>I6,H6+I6<0),makro1(),ROUNDDOWN(I6-J6,-1)) -> 300 | L6: 150 | M6: 150
A7: pol. Bildung, Antidiskriminierung, Gender- / Hochschulpolitik | B7: 1 | C7: 0 | D7: 0 | E7: 0 | F7: 150 | G7: 0 | H7: 150 | I7: 300 | J7: 0 | K7: =IF(OR(J7>I7,H7+I7<0),makro1(),ROUNDDOWN(I7-J7,-1)) -> 300 | L7: 150 | M7: 150
A8: Konstituierungsseminar (KoSe) / StuRa | B8: 1 | C8: 0 | D8: 0 | E8: 0 | F8: 1000 | G8: 0 | H8: 1000 | I8: 600 | J8: 0 | K8: =IF(OR(J8>I8,H8+I8<0),makro1(),ROUNDDOWN(I8-J8,-1)) -> 600 | L8: 1000 | M8: 1000
A9: Lern- und Informationsseminar (LuISe) / StuRa | B9: 1 | C9: 0 | D9: 0 | E9: 0 | F9: 2500 | G9: 0 | H9: 2500 | I9: 400 | J9: 0 | K9: =IF(OR(J9>I9,H9+I9<0),makro1(),ROUNDDOWN(I9-J9,-1)) -> 400 | L9: 2500 | M9: 2500
A10: Lern- und Informationsseminar (LuISe) / StuRa | B10: 1 | C10: 0 | D10: 0 | E10: =D10-C10 -> 0 | F10: 500 | G10: 0 | H10: =F10-G10 -> 500 | I10: 400 | J10: =IF(H10<0,IF(I10>0,IF((H10*(-1))>I10,I10,H10*(-1)),0),0) -> 0 | K10: =IF(OR(J10>I10,H10+I10<0),makro1(),ROUNDDOWN(I10-J10,-1)) -> 400 | L10: =IF(H10>0,ROUNDDOWN(H10,-1),0) -> 500 | M10: =(D10-G10+J10)-(C10-F10) -> 500
A11: CLearance And Rapprochement (CLARA) / StuRa | B11: 1 | C11: 0 | D11: 0 | E11: 0 | F11: 100 | G11: 0 | H11: 100 | I11: 100 | J11: 0 | K11: =IF(OR(J11>I11,H11+I11<0),makro1(),ROUNDDOWN(I11-J11,-1)) -> 100 | L11: 100 | M11: 100
A12: CoCo-Pauschale | B12: 1 | C12: 0 | D12: 0 | E12: 0 | F12: 250 | G12: 0 | H12: 250
A13: Gesamtsumme: | C13: =SUM(C3:C12) -> 0 | D13: 0 | E13: 0 | F13: 5500 | G13: 2977.84 | H13: 2522.16 | I13: =SUM(I3:I11) -> 3700 | J13: =SUM(J3:J11) -> 900 | K13: =SUM(K3:K11) -> 2800 | L13: =SUM(L3:L11) -> 4750 | M13: 3422.16
A15: Konferenzen | B15: Häufigkeit | C15: Einnahmen | F15: Ausgaben | I15: nachrangig verwendbares Vj. Budget | J15: davon verwendet | K15: Zuführung "Fortgeschr. finanz. Mittel" | L15: Übertrag ins nächste HH-Jahr | M15: §5 Abs.4 S.2 FO
C16: PLAN | D16: IST | E16: SALDO | F16: PLAN | G16: IST | H16: SALDO
A17: O.S.T. (Bereich Bund/Land) / Hochschulpolitik | B17: 1 | C17: 0 | D17: 0 | E17: =D17-C17 -> 0 | F17: 1000 | G17: 0 | H17: =F17-G17 -> 1000 | I17: 1500 | J17: =IF(H17<0,IF(I17>0,IF((H17*(-1))>I17,I17,H17*(-1)),0),0) -> 0 | K17: =IF(OR(J17>I17,H17+I17<0),makro1(),ROUNDDOWN(I17-J17,-1)) -> 1500 | L17: =IF(H17>0,ROUNDDOWN(H17,-1),0) -> 1000 | M17: =(D17-G17+J17)-(C17-F17) -> 1000
A18: BuFaTa / FSR | B18: 0.5 | C18: 0 | D18: 0 | E18: =D18-C18 -> 0 | F18: 1000 | G18: 0 | H18: =F18-G18 -> 1000 | I18: 0 | J18: 0 | K18: =IF(OR(J18>I18,H18+I18<0),makro1(),ROUNDDOWN(I18-J18,-1)) -> 0 | L18: 1000 | M18: =(D18-G18+J18)-(C18-F18) -> 1000
A19: CoCo-Pauschale | B19: 1 | C19: 0 | D19: 0 | E19: =D19-C19 -> 0 | F19: 500 | G19: 0 | H19: =F19-G19 -> 500 | M19: 500
A20: Gesamtsumme: | C20: =SUM(C17:C19) -> 0 | D20: 0 | E20: 0 | F20: 2500 | G20: 0 | H20: 2500 | I20: =SUM(I17:I18) -> 1500 | J20: =SUM(J17:J18) -> 0 | K20: =SUM(K17:K18) -> 1500 | L20: =SUM(L17:L18) -> 2000 | M20: 2500

Sheet Finanzen
A1: Referat Finanzen | C1: Häufigkeit | D1: Einnahmen | G1: Ausgaben
D2: PLAN | E2: IST | F2: SALDO | G2: PLAN | H2: IST | I2: SALDO
A3: Kontoführung mit online-banking | B3: Sachkonto: 4970 | C3: 12 | D3: 0 | E3: 0 | F3: =E3-D3 -> 0 | G3: 400 | H3: 300.61 | I3: =G3-H3 -> 99.39
A4: Buchhaltungssoftware AGENDA | B4: Sachkonto: 4955 | C4: 12 | D4: 0 | E4: 0 | F4: =E4-D4 -> 0 | G4: 1000 | H4: 328.44 | I4: =G4-H4 -> 671.56
A5: Gesamtsumme: | D5: =SUM(D3:D4) -> 0 | E5: 0 | F5: 0 | G5: 1400 | H5: 629.05 | I5: 770.95

Sheet Hochschulpolitik
A1: Referat Hochschulpolitik | B1: Häufigkeit | C1: Einnahmen | F1: Ausgaben | I1: nachrangig verwendbares Vj. Budget | J1: davon verwendet | K1: Zuführung "Fortgeschr. finanz. Mittel" | L1: Übertrag ins nächste HH-Jahr | M1: §5 Abs.4 S.2 FO
C2: PLAN | D2: IST | E2: SALDO | F2: PLAN | G2: IST | H2: SALDO
A3: "festival contre le rasism" | B3: 1 | C3: 0 | D3: 0 | E3: =D3-C3 -> 0 | F3: 200 | G3: 0 | H3: =F3-G3 -> 200 | I3: 550 | J3: =IF(H3<0,IF(I3>0,IF((H3*(-1))>I3,I3,H3*(-1)),0),0) -> 0 | K3: =IF(OR(J3>I3,H3+I3<0),makro1(),ROUNDDOWN(I3-J3,-1)) -> 550 | L3: =IF(H3>0,ROUNDDOWN(H3,-1),0) -> 200 | M3: =(D3-G3+J3)-(C3-F3) -> 200
A4: Aktionstage gegen Sexismus und Homophobie | B4: 1 | C4: 0 | D4: 0 | E4: =D4-C4 -> 0 | F4: 200 | G4: 0 | H4: =F4-G4 -> 200 | I4: 550 | J4: 0 | K4: =IF(OR(J4>I4,H4+I4<0),makro1(),ROUNDDOWN(I4-J4,-1)) -> 550 | L4: =IF(H4>0,ROUNDDOWN(H4,-1),0) -> 200 | M4: =(D4-G4+J4)-(C4-F4) -> 200
A5: Aktionen, Festivals und Demonstrationen | C5: 0 | D5: 0 | E5: =D5-C5 -> 0 | F5: 300 | G5: 0 | H5: =F5-G5 -> 300 | I5: 750 | J5: 0 | K5: =IF(OR(J5>I5,H5+I5<0),makro1(),ROUNDDOWN(I5-J5,-1)) -> 750 | L5: 300 | M5: 300
A6: Förderverein HTW Dresden - Mitgliedsbeitrag | B6: 1 | C6: 0 | D6: 0 | E6: =D6-C6 -> 0 | F6: 150 | G6: 150 | H6: =F6-G6 -> 0 | I6: 0 | J6: 0 | K6: =IF(OR(J6>I6,H6+I6<0),makro1(),ROUNDDOWN(I6-J6,-1)) -> 0 | L6: 0 | M6: 0
A7: politische Bildung / Umweltbildung | C7: 0 | D7: 0 | E7: =D7-C7 -> 0 | F7: 900 | G7: 0 | H7: =F7-G7 -> 900 | I7: 1150 | J7: 0 | K7: =IF(OR(J7>I7,H7+I7<0),makro1(),ROUNDDOWN(I7-J7,-1)) -> 1150 | L7: 900 | M7: 900
A8: Gesamtsumme: | C8: =SUM(C3:C7) -> 0 | D8: 0 | E8: 0 | F8: 1750 | G8: 150 | H8: 1600 | I8: 3000 | J8: 0 | K8: 3000 | L8: 1600 | M8: 1600

Sheet Internationales
A1: Referat Internationales | B1: Häufigkeit | C1: Einnahmen | F1: Ausgaben | I1: nachrangig verwendbares Vj. Budget | J1: davon verwendet | K1: Zuführung "Fortgeschr. finanz. Mittel" | L1: Übertrag ins nächste HH-Jahr | M1: §5 Abs.4 S.2 FO
C2: PLAN | D2: IST | E2: SALDO | F2: PLAN | G2: IST | H2: SALDO
A3: Erasmus Student Network | C3: 0 | D3: 0 | E3: =D3-C3 -> 0 | F3: 300 | G3: 65.4 | H3: =F3-G3 -> 234.6 | I3: 500 | J3: =IF(H3<0,IF(I3>0,IF((H3*(-1))>I3,I3,H3*(-1)),0),0) -> 0 | K3: =IF(OR(J3>I3,H3+I3<0),makro1(),ROUNDDOWN(I3-J3,-1)) -> 500 | L3: =IF(H3>0,ROUNDDOWN(H3,-1),0) -> 230 | M3: =(D3-G3+J3)-(C3-F3) -> 234.6
A4: DAAD Mitgliedsbeitrag | B4: 1 | C4: 0 | D4: 0 | E4: =D4-C4 -> 0 | F4: 50 | G4: 50 | H4: =F4-G4 -> 0 | I4: 0 | J4: 0 | K4: =IF(OR(J4>I4,H4+I4<0),makro1(),ROUNDDOWN(I4-J4,-1)) -> 0 | L4: =IF(H4>0,ROUNDDOWN(H4,-1),0) -> 0 | M4: =(D4-G4+J4)-(C4-F4) -> 0
A5: Internationaler Tag | B5: 1 | C5: 0 | D5: 0 | E5: =D5-C5 -> 0 | F5: 50 | G5: 0 | H5: =F5-G5 -> 50 | I5: 460 | J5: 0 | K5: =IF(OR(J5>I5,H5+I5<0),makro1(),ROUNDDOWN(I5-J5,-1)) -> 460 | L5: 50 | M5: 50
A6: CoCo-Pauschale | C6: 0 | D6: 0 | E6: =D6-C6 -> 0 | F6: 450 | G6: 0 | H6: =F6-G6 -> 450
A7: Gesamtsumme: | C7: =SUM(C3:C6) -> 0 | D7: 0 | E7: 0 | F7: 850 | G7: 115.4 | H7: 734.6 | I7: =SUM(I3:I5) -> 960 | J7: =SUM(J3:J5) -> 0 | K7: =SUM(K3:K5) -> 960 | L7: =SUM(L3:L5) -> 280 | M7: =(D7-G7+J7)-(C7-F7) -> 734.6

Sheet Kultur
A1: Referat Kultur | B1: Häufigkeit | C1: Einnahmen | F1: Ausgaben | I1: nachrangig verwendbares Vj. Budget | J1: davon verwendet | K1: Zuführung "Fortgeschr. finanz. Mittel" | L1: Übertrag ins nächste HH-Jahr | M1: §5 Abs.4 S.2 FO
C2: PLAN | D2: IST | E2: SALDO | F2: PLAN | G2: IST | H2: SALDO
A3: Semestereröffnungsparty (SEP) | B3: 2 | C3: 2000 | D3: 2194 | E3: =D3-C3 -> 194 | F3: 2000 | G3: 586.14 | H3: =F3-G3 -> 1413.86 | I3: 2430 | J3: =IF(H3<0,IF(I3>0,IF((H3*(-1))>I3,I3,H3*(-1)),0),0) -> 0 | K3: =IF(OR(J3>I3,H3+I3<0),makro1(),ROUNDDOWN(I3-J3,-1)) -> 2430 | L3: =IF(H3>0,ROUNDDOWN(H3,-1),0) -> 1410 | M3: =(D3-G3+J3)-(C3-F3) -> 1607.86
A4: Kino in der Hochschule | C4: 600 | D4: 202.5 | E4: -397.5 | F4: 800 | G4: 477.9 | H4: 322.1 | I4: 270 | J4: 0 | K4: =IF(OR(J4>I4,H4+I4<0),makro1(),ROUNDDOWN(I4-J4,-1)) -> 270 | L4: =IF(H4>0,ROUNDDOWN(H4,-1),0) -> 320 | M4: =(D4-G4+J4)-(C4-F4) -> -75.4
A5: Rockkonzert "No Distance" | B5: 1 | C5: 2000 | D5: 0 | E5: -2000 | F5: 2000 | G5: 248.75 | H5: 1751.25 | I5: 1440 | J5: 0 | K5: =IF(OR(J5>I5,H5+I5<0),makro1(),ROUNDDOWN(I5-J5,-1)) -> 1440 | L5: 1750 | M5: -248.75
A6: Spieleabend | B6: 2 | C6: 0 | D6: 0 | E6: =D6-C6 -> 0 | F6: 150 | G6: 0 | H6: =F6-G6 -> 150 | I6: 0 | J6: =IF(H6<0,IF(I6>0,IF((H6*(-1))>I6,I6,H6*(-1)),0),0) -> 0 | K6: =IF(OR(J6>I6,H6+I6<0),makro1(),ROUNDDOWN(I6-J6,-1)) -> 0 | L6: 150 | M6: =(D6-G6+J6)-(C6-F6) -> 150
A7: Dies Academicus | B7: 1 | C7: 0 | D7: 0 | E7: 0 | F7: 350 | G7: 0 | H7: 350 | I7: 0 | J7: 0 | K7: =IF(OR(J7>I7,H7+I7<0),makro1(),ROUNDDOWN(I7-J7,-1)) -> 0 | L7: =IF(H7>0,ROUNDDOWN(H7,-1),0) -> 350 | M7: 350
A8: LAN-Partys | B8: 1 | C8: 400 | D8: 0 | E8: -400 | F8: 400 | G8: 0 | H8: 400 | I8: 560 | J8: 0 | K8: =IF(OR(J8>I8,H8+I8<0),makro1(),ROUNDDOWN(I8-J8,-1)) -> 560 | L8: 400 | M8: 0
A9: Erstsemestereinführung (ESE) durch StuRa | B9: 1 | C9: 2500 | D9: 0 | E9: -2500 | F9: 6000 | G9: 0 | H9: 6000 | I9: 740 | J9: 0 | K9: =IF(OR(J9>I9,H9+I9<0),makro1(),ROUNDDOWN(I9-J9,-1)) -> 740 | L9: 6000 | M9: 3500
A10: Gesamtsumme: | C10: =SUM(C3:C9) -> 7500 | D10: =SUM(D3:D9) -> 2396.5 | E10: =SUM(E3:E9) -> -5103.5 | F10: 11700 | G10: 1312.79 | H10: 10387.21 | I10: =SUM(I3:I9) -> 5440 | J10: =SUM(J3:J9) -> 0 | K10: =SUM(K3:K9) -> 5440 | L10: =SUM(L3:L9) -> 10380 | M10: =(D10-G10+J10)-(C10-F10) -> 5283.71

Sheet Öffentlichkeitsarbeit
A1: Referat Öffentlichkeitsarbeit | B1: Häufigkeit | C1: Einnahmen | F1: Ausgaben | I1: nachrangig verwendbares Vj. Budget | J1: davon verwendet | K1: Zuführung "Fortgeschr. finanz. Mittel" | L1: Übertrag ins nächste HH-Jahr | M1: §5 Abs.4 S.2 FO
C2: PLAN | D2: IST | E2: SALDO | F2: PLAN | G2: IST | H2: SALDO
A3: Druck Hochschul-ABC (Anteilig) | B3: 1 | C3: 0 | D3: 0 | E3: =D3-C3 -> 0 | F3: 850 | G3: 0 | H3: =F3-G3 -> 850 | I3: 0 | J3: =IF(H3<0,IF(I3>0,IF((H3*(-1))>I3,I3,H3*(-1)),0),0) -> 0 | K3: =IF(OR(J3>I3,H3+I3<0),makro1(),ROUNDDOWN(I3-J3,-1)) -> 0 | L3: =IF(H3>0,ROUNDDOWN(H3,-1),0) -> 850 | M3: =(D3-G3+J3)-(C3-F3) -> 850
A4: Hochschulveranstaltungen | C4: 0 | D4: 0 | E4: =D4-C4 -> 0 | F4: 0 | G4: 0 | H4: =F4-G4 -> 0 | I4: 0 | J4: 0 | K4: =IF(OR(J4>I4,H4+I4<0),makro1(),ROUNDDOWN(I4-J4,-1)) -> 0 | L4: =IF(H4>0,ROUNDDOWN(H4,-1),0) -> 0 | M4: =(D4-G4+J4)-(C4-F4) -> 0
A5: Werbemittel | C5: 0 | D5: 0 | E5: =D5-C5 -> 0 | F5: 1000 | G5: 0 | H5: =F5-G5 -> 1000 | I5: 1340 | J5: 0 | K5: =IF(OR(J5>I5,H5+I5<0),makro1(),ROUNDDOWN(I5-J5,-1)) -> 1340 | L5: 1000 | M5: 1000
A6: Interessiertengrillen | B6: 2 | C6: 0 | D6: 0 | E6: =D6-C6 -> 0 | F6: 250 | G6: 0 | H6: =F6-G6 -> 250 | I6: 0 | J6: 0 | K6: =IF(OR(J6>I6,H6+I6<0),makro1(),ROUNDDOWN(I6-J6,-1)) -> 0 | L6: 250 | M6: 250
A7: Merchandise | C7: 500 | D7: 40 | E7: =D7-C7 -> -460 | F7: 1500 | G7: 0 | H7: =F7-G7 -> 1500 | I7: 320 | J7: 0 | K7: =IF(OR(J7>I7,H7+I7<0),makro1(),ROUNDDOWN(I7-J7,-1)) -> 320 | L7: 1500 | M7: 1040
A8: Gesamtsumme: | C8: =SUM(C3:C7) -> 500 | D8: 40 | E8: -460 | F8: 3600 | G8: 0 | H8: 3600 | I8: =SUM(I3:I7) -> 1660 | J8: =SUM(J3:J7) -> 0 | K8: =SUM(K3:K7) -> 1660 | L8: =SUM(L3:L7) -> 3600 | M8: 3140

Sheet Qualitätsmanagement
A1: Referat Qualitätsmanagement | B1: Häufigkeit | C1: Einnahmen | F1: Ausgaben | I1: nachrangig verwendbares Vj. Budget | J1: davon verwendet | K1: Zuführung "Fortgeschr. finanz. Mittel" | L1: Übertrag ins nächste HH-Jahr | M1: §5 Abs.4 S.2 FO
C2: PLAN | D2: IST | E2: SALDO | F2: PLAN | G2: IST | H2: SALDO
A3: CoCo-Pauschale | C3: 0 | D3: 0 | E3: =D3-C3 -> 0 | F3: 500 | G3: 0 | H3: =F3-G3 -> 500
A4: Gesamtsumme: | C4: =SUM(C3:C3) -> 0 | D4: 0 | E4: 0 | F4: 500 | G4: 0 | H4: 500 | I4: =SUM(I3) -> 0 | J4: =SUM(J3) -> 0 | K4: =SUM(K3) -> 0 | L4: =SUM(L3) -> 0 | M4: =(D4-G4+J4)-(C4-F4) -> 500

Sheet Soziales
A1: Referat Soziales | B1: Häufigkeit | C1: Einnahmen | F1: Ausgaben | I1: nachrangig verwendbares Vj. Budget | J1: davon verwendet | K1: Zuführung "Fortgeschr. finanz. Mittel" | L1: Übertrag ins nächste HH-Jahr | M1: §5 Abs.4 S.2 FO
C2: PLAN | D2: IST | E2: SALDO | F2: PLAN | G2: IST | H2: SALDO
A3: Projekt "Studieren mit Kind" | C3: 0 | D3: 0 | E3: =D3-C3 -> 0 | F3: 0 | G3: 0 | H3: =F3-G3 -> 0 | I3: 200 | J3: =IF(H3<0,IF(I3>0,IF((H3*(-1))>I3,I3,H3*(-1)),0),0) -> 0 | K3: =IF(OR(J3>I3,H3+I3<0),makro1(),ROUNDDOWN(I3-J3,-1)) -> 200 | L3: =IF(H3>0,ROUNDDOWN(H3,-1),0) -> 0 | M3: =(D3-G3+J3)-(C3-F3) -> 0
A4: Projekt Studieren mit Beeinträchtigung | C4: 0 | D4: 0 | E4: =D4-C4 -> 0 | F4: 200 | G4: 0 | H4: =F4-G4 -> 200 | I4: 0 | J4: =IF(H4<0,IF(I4>0,IF((H4*(-1))>I4,I4,H4*(-1)),0),0) -> 0 | K4: =IF(OR(J4>I4,H4+I4<0),makro1(),ROUNDDOWN(I4-J4,-1)) -> 0 | L4: =IF(H4>0,ROUNDDOWN(H4,-1),0) -> 200 | M4: =(D4-G4+J4)-(C4-F4) -> 200
A5: Veranstaltungen zu sozialen Belangen | B5: 2 | C5: 0 | D5: 0 | E5: =D5-C5 -> 0 | F5: 1000 | G5: 0 | H5: =F5-G5 -> 1000 | I5: 0 | J5: 0 | K5: =IF(OR(J5>I5,H5+I5<0),makro1(),ROUNDDOWN(I5-J5,-1)) -> 0 | L5: =IF(H5>0,ROUNDDOWN(H5,-1),0) -> 1000 | M5: =(D5-G5+J5)-(C5-F5) -> 1000
A6: CoCo-Pauschale | C6: 0 | D6: 0 | E6: 0 | F6: 300 | G6: 0 | H6: 300
A7: Gesamtsumme: | C7: =SUM(C3:C6) -> 0 | D7: 0 | E7: 0 | F7: 1500 | G7: 0 | H7: 1500 | I7: 200 | J7: 0 | K7: 200 | L7: 1200 | M7: 1500

Sheet Sport
A1: Referat Sport | B1: Häufigkeit | C1: Einnahmen | F1: Ausgaben | I1: nachrangig verwendbares Vj. Budget | J1: davon verwendet | K1: Zuführung "Fortgeschr. finanz. Mittel" | L1: Übertrag ins nächste HH-Jahr | M1: §5 Abs.4 S.2 FO
C2: PLAN | D2: IST | E2: SALDO | F2: PLAN | G2: IST | H2: SALDO
A3: Tuniere, Preise, Beiträge | C3: 0 | D3: 0 | E3: =D3-C3 -> 0 | F3: 800 | G3: 0 | H3: =F3-G3 -> 800 | I3: 1270 | J3: =IF(H3<0,IF(I3>0,IF((H3*(-1))>I3,I3,H3*(-1)),0),0) -> 0 | K3: =IF(OR(J3>I3,H3+I3<0),makro1(),ROUNDDOWN(I3-J3,-1)) -> 1270 | L3: =IF(H3>0,ROUNDDOWN(H3,-1),0) -> 800 | M3: =(D3-G3+J3)-(C3-F3) -> 800
A4: Startgebühren | B4: 1 | C4: 0 | D4: 0 | E4: 0 | F4: 300 | G4: 0 | H4: 300 | I4: 580 | J4: 0 | K4: =IF(OR(J4>I4,H4+I4<0),makro1(),ROUNDDOWN(I4-J4,-1)) -> 580 | L4: =IF(H4>0,ROUNDDOWN(H4,-1),0) -> 300 | M4: =(D4-G4+J4)-(C4-F4) -> 300
A5: Drachenbootrennen | B5: 1 | C5: 0 | D5: 0 | E5: 0 | F5: 0 | G5: 0 | H5: 0 | I5: 0 | J5: 0 | K5: =IF(OR(J5>I5,H5+I5<0),makro1(),ROUNDDOWN(I5-J5,-1)) -> 0 | L5: 0 | M5: 0
A6: sächsische Beachmeisterschaften | B6: 1 | C6: 0 | D6: 0 | E6: 0 | F6: 0 | G6: 0 | H6: 0 | I6: 0 | J6: 0 | K6: =IF(OR(J6>I6,H6+I6<0),makro1(),ROUNDDOWN(I6-J6,-1)) -> 0 | L6: 0 | M6: 0
A7: Hochschulsportfest | B7: 1 | C7: 0 | D7: 0 | E7: 0 | F7: 150 | G7: 0 | H7: 150 | I7: 300 | J7: 0 | K7: =IF(OR(J7>I7,H7+I7<0),makro1(),ROUNDDOWN(I7-J7,-1)) -> 300 | L7: =IF(H7>0,ROUNDDOWN(H7,-1),0) -> 150 | M7: 150
A8: Werbung | C8: 0 | D8: 0 | E8: 0 | F8: 0 | G8: 0 | H8: 0 | I8: 0 | J8: 0 | K8: =IF(OR(J8>I8,H8+I8<0),makro1(),ROUNDDOWN(I8-J8,-1)) -> 0 | L8: 0 | M8: 0
A9: Gesamtsumme: | C9: =SUM(C3:C8) -> 0 | D9: 0 | E9: 0 | F9: 1250 | G9: 0 | H9: 1250 | I9: =SUM(I3:I8) -> 2150 | J9: =SUM(J3:J8) -> 0 | K9: =SUM(K3:K8) -> 2150 | L9: =SUM(L3:L8) -> 1250 | M9: 1250

Sheet Studium
A1: Referat Studium | B1: Häufigkeit | C1: Einnahmen | F1: Ausgaben | I1: nachrangig verwendbares Vj. Budget | J1: davon verwendet | K1: Zuführung "Fortgeschr. finanz. Mittel" | L1: Übertrag ins nächste HH-Jahr | M1: §5 Abs.4 S.2 FO
C2: PLAN | D2: IST | E2: SALDO | F2: PLAN | G2: IST | H2: SALDO
A3: Kompetenzorientiertes Prüfen | C3: 0 | D3: 0 | E3: =D3-C3 -> 0 | F3: 0 | G3: 0 | H3: =F3-G3 -> 0 | I3: 0 | J3: =IF(H3<0,IF(I3>0,IF((H3*(-1))>I3,I3,H3*(-1)),0),0) -> 0 | K3: =IF(OR(J3>I3,H3+I3<0),makro1(),ROUNDDOWN(I3-J3,-1)) -> 0 | L3: =IF(H3>0,ROUNDDOWN(H3,-1),0) -> 0 | M3: =(D3-G3+J3)-(C3-F3) -> 0
A4: Systemakkreditierung, was nun? | C4: 0 | D4: 0 | E4: =D4-C4 -> 0 | F4: 0 | G4: 0 | H4: =F4-G4 -> 0 | I4: 0 | J4: 0 | K4: =IF(OR(J4>I4,H4+I4<0),makro1(),ROUNDDOWN(I4-J4,-1)) -> 0 | L4: =IF(H4>0,ROUNDDOWN(H4,-1),0) -> 0 | M4: =(D4-G4+J4)-(C4-F4) -> 0
A5: CoCo-Pauschale | C5: 0 | D5: 0 | E5: =D5-C5 -> 0 | F5: 500 | G5: 0 | H5: =F5-G5 -> 500
A6: Gesamtsumme: | C6: =SUM(C3:C5) -> 0 | D6: 0 | E6: 0 | F6: 500 | G6: 0 | H6: 500 | I6: =SUM(I3:I4) -> 0 | J6: =SUM(J3:J4) -> 0 | K6: =SUM(K3:K4) -> 0 | L6: =SUM(L3:L4) -> 0 | M6: 500

Sheet Studentische Verwaltung
A1: Referat Verwaltung | B1: Häufigkeit | C1: Einnahmen | F1: Ausgaben | I1: nachrangig verwendbares Vj. Budget | J1: davon verwendet | K1: Zuführung "Fortgeschr. finanz. Mittel" | L1: Übertrag ins nächste HH-Jahr | M1: §5 Abs.4 S.2 FO
C2: PLAN | D2: IST | E2: SALDO | F2: PLAN | G2: IST | H2: SALDO
A3: Telefon | C3: 0 | D3: 0 | E3: =D3-C3 -> 0 | F3: 100 | G3: 0 | H3: =F3-G3 -> 100 | I3: 100 | J3: =IF(H3<0,IF(I3>0,IF((H3*(-1))>I3,I3,H3*(-1)),0),0) -> 0 | K3: =IF(OR(J3>I3,H3+I3<0),makro1(),ROUNDDOWN(I3-J3,-1)) -> 100 | L3: =IF(H3>0,ROUNDDOWN(H3,-1),0) -> 100 | M3: =(D3-G3+J3)-(C3-F3) -> 100
A4: Domains | C4: 0 | D4: 0 | E4: =D4-C4 -> 0 | F4: 50 | G4: 0 | H4: =F4-G4 -> 50 | I4: 20 | J4: 0 | K4: =IF(OR(J4>I4,H4+I4<0),makro1(),ROUNDDOWN(I4-J4,-1)) -> 20 | L4: =IF(H4>0,ROUNDDOWN(H4,-1),0) -> 50 | M4: =(D4-G4+J4)-(C4-F4) -> 50
A5: Informationen zu Wahlen | B5: 2 | C5: 0 | D5: 0 | E5: 0 | F5: 150 | G5: 0 | H5: 150 | I5: 300 | J5: 0 | K5: =IF(OR(J5>I5,H5+I5<0),makro1(),ROUNDDOWN(I5-J5,-1)) -> 300 | L5: 150 | M5: 150
A6: Beitrag Gruppenausweis für Jugendherbergen | B6: 1 | C6: 0 | D6: 0 | E6: 0 | F6: 35 | G6: 0 | H6: 35 | I6: 0 | J6: 0 | K6: =IF(OR(J6>I6,H6+I6<0),makro1(),ROUNDDOWN(I6-J6,-1)) -> 0 | L6: 30 | M6: 35
A7: Labeldrucker (für die ISIC-Ausweise) | B7: 1 | C7: 0 | D7: 0 | E7: 0 | F7: 0 | G7: 0 | H7: 0 | I7: 0 | J7: 0 | K7: =IF(OR(J7>I7,H7+I7<0),makro1(),ROUNDDOWN(I7-J7,-1)) -> 0 | L7: 0 | M7: 0
A8: Vertrieb ISIC | C8: 300 | D8: 120 | E8: -180 | F8: 250 | G8: 168.75 | H8: 81.25 | I8: 600 | J8: 0 | K8: =IF(OR(J8>I8,H8+I8<0),makro1(),ROUNDDOWN(I8-J8,-1)) -> 600 | L8: =IF(H8>0,ROUNDDOWN(H8,-1),0) -> 80 | M8: -98.75
A9: Dienste für elektronische Datenverarbeitung | C9: 0 | D9: 0 | E9: 0 | F9: 15000 | G9: 0 | H9: 15000 | I9: 0 | J9: 0 | K9: =IF(OR(J9>I9,H9+I9<0),makro1(),ROUNDDOWN(I9-J9,-1)) -> 0 | L9: 15000 | M9: 15000
A10: andauernde Betreuung Server durch Externe | C10: 0 | D10: 0 | E10: =D10-C10 -> 0 | F10: 2400 | G10: 0 | H10: =F10-G10 -> 2400 | I10: 0 | J10: =IF(H10<0,IF(I10>0,IF((H10*(-1))>I10,I10,H10*(-1)),0),0) -> 0 | K10: =IF(OR(J10>I10,H10+I10<0),makro1(),ROUNDDOWN(I10-J10,-1)) -> 0 | L10: =IF(H10>0,ROUNDDOWN(H10,-1),0) -> 2400 | M10: =(D10-G10+J10)-(C10-F10) -> 2400
A11: Beiträge/Gebühren | C11: 0 | D11: 0 | E11: 0 | F11: 0 | G11: 0 | H11: 0 | I11: 0 | J11: 0 | K11: =IF(OR(J11>I11,H11+I11<0),makro1(),ROUNDDOWN(I11-J11,-1)) -> 0 | L11: 0 | M11: 0
A12: Büromaterial und-ausstattung | C12: 0 | D12: 0 | E12: 0 | F12: 250 | G12: 0 | H12: 250 | I12: 440 | J12: 0 | K12: =IF(OR(J12>I12,H12+I12<0),makro1(),ROUNDDOWN(I12-J12,-1)) -> 440 | L12: 250 | M12: 250
A13: laufende Kosten für Druck, samt Nebenkosten | C13: 0 | D13: 0 | E13: 0 | F13: 700 | G13: 91.56 | H13: 608.44 | I13: 530 | J13: 0 | K13: =IF(OR(J13>I13,H13+I13<0),makro1(),ROUNDDOWN(I13-J13,-1)) -> 530 | L13: 600 | M13: 608.44
A14: Gesamtsumme: | C14: =SUM(C3:C13) -> 300 | D14: 120 | E14: -180 | F14: 18935 | G14: 260.31 | H14: 18674.69 | I14: =SUM(I3:I13) -> 1990 | J14: =SUM(J3:J13) -> 0 | K14: =SUM(K3:K13) -> 1990 | L14: =SUM(L3:L13) -> 18660 | M14: 18494.69
